fUSD/lending_fUSD_20240630
["ID","MTS","AMOUNT","RATE_DAILY","PERIOD"]
[330724737,1719738637183,-673.07,0.00013998,3]
[330724738,1719738637192,-500.0,0.00013998,3]
[330724739,1719738637203,-723.54,0.00013998,3]
[330724740,1719738637212,-500.0,0.00013998,3]
[330724741,1719738637221,-744.79,0.00013998,3]
[330724742,1719738637231,-1270.92,0.00013998,3]
[330724743,1719738637243,-500.0,0.00013998,3]
[330724744,1719738637252,-500.0,0.00013998,3]
[330724745,1719738637263,-465.97912593,0.00013998,3]
[330724746,1719738637272,-1058.22,0.00013998,3]
[330724747,1719738637283,-500.0,0.00013998,3]
[330724748,1719738637292,-684.8,0.00013998,3]
[330724749,1719738637302,-834.14,0.00013998,3]
[330724750,1719738637314,-500.0,0.00013998,3]
[330724751,1719738637323,-500.0,0.00013998,3]
[330724752,1719738637333,-500.0,0.00013998,3]
[330724753,1719738637342,-500.0,0.00013998,3]
[330724754,1719738637352,-500.0,0.00013998,3]
[330724755,1719738637361,-571.59,0.00013998,3]
[330724756,1719738637371,-500.0,0.00013998,3]
[330724757,1719738637380,-500.0,0.00013998,3]
[330724758,1719738637393,-500.0,0.00013998,3]
[330724759,1719738637403,-500.0,0.00013998,3]
[330724760,1719738637412,-500.0,0.00013998,3]
[330724761,1719738637422,-500.0,0.00013998,3]
[330724762,1719738637432,-799.18,0.00013998,3]
[330724763,1719738637441,-2000.0,0.00013998,2]
[330724764,1719738637451,-500.0,0.00013998,3]
[330724765,1719738637460,-500.0,0.00013998,3]
[330724766,1719738637470,-733.96,0.00013998,3]
[330724767,1719738637480,-1197.0,0.00013998,3]
[330724768,1719738637489,-200.0,0.00013998,2]
[330724769,1719738637499,-1996.06,0.00013998,3]
[330724770,1719738637509,-501.57414664,0.00013998,3]
[330724771,1719738637519,-332.41221294,0.00013998,3]
[330724772,1719738637530,-1584.07,0.00013998,3]
[330724773,1719738637541,-500.0,0.00013998,3]
[330724774,1719738637551,-500.0,0.00013998,3]
[330724775,1719738637560,-500.0,0.00013998,3]
[330724776,1719738637570,-500.0,0.00013998,3]
[330724777,1719738637579,-500.0,0.00013998,3]
[330724778,1719738637589,-500.0,0.00013998,3]
[330724779,1719738637598,-501.14194012,0.00013998,3]
[330724780,1719738637608,-501.30847721,0.00013998,3]
[330724781,1719738637617,-500.0,0.00013998,3]
[330724782,1719738637627,-211.72355768,0.00013998,3]
[330724783,1719738637637,-500.0,0.00013998,3]
[330724784,1719738637647,-500.0,0.00013998,3]
[330724785,1719738637656,-772.57,0.00013998,3]
[330724786,1719738637666,-500.0,0.00013999,3]
[330724787,1719738637675,-500.0,0.00013999,3]
[330724788,1719738637684,-502.46902481,0.00013999,3]
[330724789,1719738637694,-500.0,0.00013999,3]
[330724790,1719738637703,-500.0,0.00013999,3]
[330724791,1719738637713,-501.25676264,0.00013999,3]
[330724792,1719738637722,-500.0,0.00013999,3]
[330724793,1719738637732,-500.28876728,0.00013999,3]
[330724794,1719738637741,-500.63845573,0.00013999,3]
[330724795,1719738637751,-500.0,0.00013999,3]
[330724796,1719738637762,-500.0,0.00013999,3]
[330724797,1719738637771,-500.0,0.00013999,3]
[330724798,1719738637783,-500.0,0.00013999,3]
[330724799,1719738637793,-396.19244101,0.00013999,3]
[330724800,1719738637803,-500.44512035,0.00013999,3]
[330724801,1719738637813,-500.61269684,0.00013999,3]
[330724802,1719738637824,-500.0,0.00013999,3]
[330724803,1719738637834,-500.0,0.00013999,3]
[330724804,1719738637844,-381328.07450839,0.00013999,2]
[330724805,1719738637869,-19051.05697284,0.00013999,2]
[330724806,1719738637896,-3540.04047111,0.00013999,2]
[330724807,1719738637908,-432.92,0.00013999,2]
[330724808,1719738637941,-976.99928413,0.00013999,2]
[330724809,1719738637953,-540.396828,0.00013999,2]
[330724810,1719738637964,-399.20391486,0.00013999,2]
[330724811,1719738637982,-2212.0993828,0.00013999,2]
[330724825,1719738642445,-1265.91,0.00013997,3]
[330724826,1719738642455,-363.57951126,0.00013998,3]
[330724827,1719738642658,-597.08048874,0.00013998,3]
[330724828,1719738642668,-1463.60759059,0.00013999,2]
[330724829,1719738642818,-870.60999909,0.00013999,2]
[330724830,1719738642830,-1568.29552831,0.00013999,2]
[330724831,1719738642841,-332.1125596,0.00013999,2]
[330724832,1719738642859,-5604.22868825,0.00013999,2]
[330724833,1719738642870,-484.34463478,0.00013999,2]
[330724834,1719738642881,-587.69249827,0.00013999,2]
[330724835,1719738643035,-722.19529931,0.00013999,2]
[330724851,1719738643776,-728.22246321,0.00013899,2]
[330724852,1719738643791,-321.77753679,0.00013899,2]
[330724853,1719738643800,-81686.86211255,0.00013999,2]
[330724854,1719738643810,-500.31376383,0.00013999,3]
[330724855,1719738643819,-500.0,0.00013999,3]
[330724856,1719738643830,-500.0,0.00013999,3]
[330724857,1719738643840,-500.0,0.00013999,3]
[330724858,1719738643849,-500.81964032,0.00013999,3]
[330724859,1719738643859,-513.23011213,0.00013999,3]
[330724860,1719738643869,-500.98948102,0.00013999,3]
[330724861,1719738643879,-500.0,0.00013999,3]
[330724863,1719738643889,-500.0,0.00013999,3]
[330724865,1719738643899,-500.0,0.00013999,3]
[330724866,1719738643909,-500.86265507,0.00013999,3]
[330724867,1719738643919,-500.0,0.00013999,3]
[330724868,1719738643929,-501.23447605,0.00013999,3]
[330724869,1719738643939,-500.58612719,0.00013999,3]
[330724870,1719738643948,-500.0,0.00013999,3]
[330724871,1719738643958,-502.15727447,0.00013999,3]
[330724872,1719738643967,-501.24366376,0.00013999,3]
[330724873,1719738643977,-501.18163621,0.00013999,3]
[330724874,1719738643987,-500.0,0.00013999,3]
[330724875,1719738643996,-502.27568144,0.00013999,3]
[330724876,1719738644007,-500.57605569,0.00013999,3]
[330724877,1719738644016,-500.0,0.00013999,3]
[330724878,1719738644026,-500.0,0.00013999,3]
[330724880,1719738644037,-500.40232574,0.00013999,3]
[330724882,1719738644051,-500.59355252,0.00013999,3]
[330724883,1719738644060,-500.35523907,0.00013999,3]
[330724884,1719738644070,-397.15511384,0.00013999,3]
[330724885,1719738644080,-501.08889942,0.00013999,3]
[330724886,1719738644090,-500.0,0.00013999,3]
[330724887,1719738644100,-500.0,0.00013999,3]
[330724888,1719738644110,-578.81223831,0.00013999,3]
[330724889,1719738644120,-500.45731054,0.00013999,3]
[330724890,1719738644130,-499.0064044,0.00013999,3]
[330724891,1719738644140,-200.0,0.00013999,3]
[330724892,1719738644150,-500.0,0.00013999,3]
[330724893,1719738644161,-500.48731682,0.00013999,3]
[330724894,1719738644174,-500.29103613,0.00013999,3]
[330724895,1719738644184,-500.45078023,0.00013999,3]
[330724896,1719738644194,-500.0,0.00013999,3]
[330724897,1719738644205,-500.0,0.00013999,3]
[330724898,1719738644216,-500.0,0.00013999,3]
[330724899,1719738644225,-500.51747789,0.00013999,3]
[330724900,1719738644236,-458.24430508,0.00013999,2]
[330724901,1719738644247,-500.32649627,0.00013999,3]
[330724902,1719738644258,-500.52216252,0.00013999,3]
[330724903,1719738644268,-500.66205473,0.00013999,3]
[330724904,1719738644278,-500.85407563,0.00013999,3]
[330724905,1719738644290,-500.0,0.00013999,3]
[330724906,1719738644300,-540.54324822,0.00013999,3]
[330724907,1719738644310,-500.51352262,0.00013999,3]
[330724908,1719738644319,-394.50878069,0.00013999,3]
[330724909,1719738644330,-501.68195301,0.00013999,3]
[330724910,1719738644340,-500.0,0.00013999,3]
[330724911,1719738644349,-537.53751841,0.00013999,3]
[330724912,1719738644359,-500.0,0.00013999,3]
[330724913,1719738644369,-501.1142973,0.00013999,3]
[330724914,1719738644378,-500.0,0.00013999,3]
[330724915,1719738644388,-500.93425311,0.00013999,3]
[330724916,1719738644397,-500.91598071,0.00013999,3]
[330724917,1719738644408,-501.80007664,0.00013999,3]
[330724918,1719738644417,-500.74173007,0.00013999,3]
[330724919,1719738644427,-500.0,0.00013999,3]
[330724920,1719738644437,-501.50614668,0.00013999,3]
[330724921,1719738644447,-500.0,0.00013999,3]
[330724922,1719738644457,-500.0,0.00013999,3]
[330724923,1719738644467,-500.0,0.00013999,3]
[330724924,1719738644476,-500.0,0.00013999,3]
[330724925,1719738644486,-500.0,0.00013999,3]
[330724926,1719738644496,-501.65809397,0.00013999,3]
[330724927,1719738644506,-500.93293022,0.00013999,3]
[330724928,1719738644515,-501.36135758,0.00013999,3]
[330724929,1719738644525,-501.42297835,0.00013999,3]
[330724930,1719738644537,-501.2110392,0.00013999,3]
[330724931,1719738644546,-500.0,0.00013999,3]
[330724932,1719738644555,-500.0,0.00013999,3]
[330724933,1719738644565,-500.3491734,0.00013999,3]
[330724934,1719738644580,-500.41657313,0.00013999,3]
[330724935,1719738644590,-500.0,0.00013999,3]
[330724936,1719738644600,-621.90324604,0.00013999,3]
[330724937,1719738644609,-500.0,0.00013999,3]
[330724938,1719738644619,-500.0,0.00013999,3]
[330724939,1719738644629,-184.29817698,0.00013999,3]
[330724940,1719738644639,-500.0,0.00013999,3]
[330724941,1719738644649,-500.0,0.00013999,3]
[330724943,1719738644659,-501.36130838,0.00013999,3]
[330724945,1719738644669,-500.0,0.00013999,3]
[330724947,1719738644679,-538.5,0.00013999,3]
[330724948,1719738644688,-500.0,0.00013999,3]
[330724949,1719738644698,-500.80074006,0.00013999,3]
[330724950,1719738644708,-795.17,0.00013999,3]
[330724951,1719738644718,-500.84674131,0.00013999,3]
[330724952,1719738644728,-500.61441503,0.00013999,3]
[330724953,1719738644738,-500.0,0.00013999,3]
[330724954,1719738644748,-500.0,0.00013999,3]
[330724955,1719738644759,-500.0,0.00013999,3]
[330724956,1719738644769,-549.25381405,0.00013999,3]
[330724957,1719738644779,-500.0,0.00013999,3]
[330724958,1719738644796,-500.0,0.00013999,3]
[330724959,1719738644805,-500.0,0.00013999,3]
[330724960,1719738644815,-500.0,0.00013999,3]
[330724961,1719738644824,-500.0,0.00013999,3]
[330724962,1719738644834,-500.0,0.00013999,3]
[330724963,1719738644843,-500.0,0.00013999,3]
[330724964,1719738644853,-500.0,0.00013999,3]
[330724965,1719738644863,-502.83639133,0.00013999,3]
[330724966,1719738644873,-500.0,0.00013999,3]
[330724967,1719738644883,-754.48,0.00013999,3]
[330724968,1719738644893,-500.0,0.00013999,3]
[330724969,1719738644902,-500.0,0.00013999,3]
[330724970,1719738644913,-1000.0,0.00013999,2]
[330724971,1719738644926,-500.0,0.00013999,3]
[330724972,1719738644937,-523.07,0.00013999,3]
[330724973,1719738644947,-500.0,0.00013999,3]
[330724974,1719738644957,-500.0,0.00013999,3]
[330724975,1719738644967,-500.0,0.00013999,3]
[330724976,1719738644977,-500.0,0.00013999,3]
[330724977,1719738644987,-500.0,0.00013999,3]
[330724978,1719738644996,-500.0,0.00013999,3]
[330724979,1719738645006,-500.0,0.00013999,3]
[330724980,1719738645016,-500.0,0.00013999,3]
[330724981,1719738645025,-172.35350865,0.00013999,3]
[330724982,1719738645039,-500.0,0.00013999,3]
[330724983,1719738645049,-500.0,0.00013999,2]
[330724984,1719738645059,-622.14,0.00013999,3]
[330724985,1719738645069,-714.18,0.00013999,3]
[330724986,1719738645078,-500.36414943,0.00013999,3]
[330724987,1719738645088,-734.85,0.00013999,3]
[330724988,1719738645098,-500.0,0.00013999,3]
[330724989,1719738645108,-500.0,0.00013999,3]
[330724990,1719738645117,-500.0,0.00013999,3]
[330724991,1719738645127,-500.0,0.00013999,3]
[330724992,1719738645137,-500.0,0.00013999,3]
[330724993,1719738645146,-500.0,0.00013999,3]
[330724994,1719738645157,-500.0,0.00013999,3]
[330724995,1719738645170,-500.0,0.00013999,3]
[330724996,1719738645180,-500.0,0.00013999,3]
[330724997,1719738645190,-500.0,0.00013999,3]
[330724998,1719738645200,-500.0,0.00013999,3]
[330724999,1719738645211,-500.0,0.00013999,3]
[330725000,1719738645221,-500.0,0.00013999,3]
[330725001,1719738645231,-500.0,0.00013999,3]
[330725002,1719738645243,-500.0,0.00013999,3]
[330725003,1719738645252,-500.0,0.00013999,3]
[330725004,1719738645262,-500.0,0.00013999,3]
[330725005,1719738645271,-500.0,0.00013999,3]
[330725006,1719738645281,-500.0,0.00013999,3]
[330725007,1719738645291,-500.0,0.00013999,3]
[330725008,1719738645300,-500.0,0.00013999,3]
[330725009,1719738645310,-861.32,0.00013999,3]
[330725010,1719738645319,-500.0,0.00013999,3]
[330725011,1719738645329,-500.0,0.00013999,3]
[330725012,1719738645339,-500.0,0.00013999,3]
[330725013,1719738645348,-882.0,0.00013999,3]
[330725014,1719738645575,-500.0,0.00013999,3]
[330725015,1719738645584,-483.32260249,0.00013999,3]
[330725016,1719738645594,-500.0,0.00013999,3]
[330725017,1719738645603,-500.94550878,0.00013999,3]
[330725018,1719738645612,-500.851293,0.00013999,3]
[330725019,1719738645622,-500.0,0.00013999,3]
[330725020,1719738645631,-500.0,0.00013999,3]
[330725021,1719738645640,-500.0,0.00013999,3]
[330725022,1719738645650,-500.0,0.00013999,3]
[330725023,1719738645659,-500.0,0.00013999,3]
[330725024,1719738645668,-500.0,0.00013999,3]
[330725025,1719738645677,-500.0,0.00013999,3]
[330725026,1719738645686,-500.0,0.00013999,3]
[330725027,1719738645695,-500.0,0.00013999,3]
[330725028,1719738645705,-500.0,0.00013999,3]
[330725029,1719738645714,-500.0,0.00013999,3]
[330725030,1719738645724,-500.21301628,0.00013999,3]
[330725031,1719738645733,-500.0,0.00013999,3]
[330725032,1719738645743,-500.0,0.00013999,3]
[330725033,1719738645752,-500.0,0.00013999,3]
[330725034,1719738645762,-500.0,0.00013999,3]
[330725035,1719738645771,-502.49763528,0.00013999,3]
[330725036,1719738645780,-500.0,0.00013999,3]
[330725037,1719738645790,-908.56,0.00013999,3]
[330725038,1719738645799,-500.0,0.00013999,3]
[330725039,1719738645809,-503.37238114,0.00013999,3]
[330725040,1719738645818,-557.81,0.00013999,3]
[330725041,1719738645827,-738.72,0.00013999,3]
[330725042,1719738645836,-500.0,0.00013999,3]
[330725043,1719738645846,-587.01,0.00013999,3]
[330725044,1719738645854,-500.0,0.00013999,3]
[330725045,1719738645862,-500.0,0.00013999,3]
[330725046,1719738645871,-503.2858525,0.00013999,3]
[330725047,1719738645880,-500.0,0.00013999,3]
[330725048,1719738645890,-576.31,0.00013999,3]
[330725049,1719738645899,-500.0,0.00013999,3]
[330725050,1719738645908,-500.0,0.00013999,3]
[330725051,1719738645920,-500.0,0.00013999,3]
[330725052,1719738645929,-500.0,0.00013999,3]
[330725053,1719738645938,-500.0,0.00013999,3]
[330725054,1719738645948,-500.0,0.00013999,3]
[330725055,1719738645957,-500.0,0.00013999,2]
[330725056,1719738645967,-500.0,0.00013999,3]
[330725057,1719738645976,-500.0,0.00013999,3]
[330725058,1719738645986,-500.0,0.00013999,3]
[330725059,1719738645995,-500.0,0.00013999,3]
[330725060,1719738646004,-500.0,0.00013999,3]
[330725061,1719738646014,-500.0,0.00013999,3]
[330725062,1719738646023,-288.12409933,0.00013999,3]
[330725063,1719738646032,-500.0,0.00013999,3]
[330725064,1719738646042,-808.67,0.00013999,3]
[330725065,1719738646052,-500.0,0.00013999,3]
[330725066,1719738646061,-501.52439593,0.00013999,3]
[330725068,1719738646071,-500.0,0.00013999,3]
[330725070,1719738646081,-175.67608837,0.00013999,3]
[330725072,1719738646090,-500.0,0.00013999,3]
[330725073,1719738646099,-245.19796852,0.00013999,3]
[330725074,1719738646109,-500.0,0.00013999,3]
[330725075,1719738646118,-500.0,0.00013999,3]
[330725076,1719738646128,-885.38,0.00013999,3]
[330725077,1719738646137,-500.0,0.00013999,3]
[330725078,1719738646147,-500.0,0.00013999,3]
[330725080,1719738646157,-500.0,0.00013999,3]
[330725081,1719738646171,-502.21513092,0.00013999,3]
[330725082,1719738646180,-501.884959,0.00013999,3]
[330725083,1719738646189,-500.0,0.00013999,3]
[330725084,1719738646198,-500.0,0.00013999,3]
[330725085,1719738646208,-500.0,0.00013999,3]
[330725086,1719738646217,-500.0,0.00013999,3]
[330725087,1719738646227,-500.0,0.00013999,3]
[330725089,1719738646237,-2500.0,0.00013999,3]
[330725091,1719738646248,-572.87289812,0.00013999,3]
[330725093,1719738646257,-496.01169166,0.00013999,3]
[330725096,1719738646267,-580.60669874,0.00013999,3]
[330725098,1719738646276,-500.0,0.00013999,3]
[330725100,1719738646285,-500.0,0.00013999,3]
[330725102,1719738646294,-502.31600936,0.00013999,3]
[330725104,1719738646304,-682.17,0.00013999,3]
[330725107,1719738646313,-500.0,0.00013999,3]
[330725109,1719738646323,-500.0,0.00013999,3]
[330725111,1719738646332,-500.0,0.00013999,3]
[330725114,1719738646342,-327.80866177,0.00013999,3]
[330725117,1719738646351,-500.0,0.00013999,3]
[330725120,1719738646361,-500.0,0.00013999,3]
[330725123,1719738646370,-500.0,0.00013999,3]
[330725126,1719738646379,-500.0,0.00013999,3]
[330725129,1719738646389,-500.0,0.00013999,3]
[330725132,1719738646399,-615.17613679,0.00013999,3]
[330725134,1719738646408,-500.0,0.00013999,3]
[330725136,1719738646418,-460.54473697,0.00013999,3]
[330725138,1719738646428,-468.71499736,0.00013999,3]
[330725140,1719738646437,-980.94,0.00013999,3]
[330725142,1719738646447,-500.0,0.00013999,3]
[330725144,1719738646457,-500.87022571,0.00013999,3]
[330725146,1719738646467,-500.0,0.00013999,3]
[330725148,1719738646476,-500.0,0.00013999,3]
[330725150,1719738646485,-500.0,0.00013999,3]
[330725152,1719738646494,-500.0,0.00013999,3]
[330725154,1719738646503,-500.0,0.00013999,3]
[330725156,1719738646513,-500.0,0.00013999,3]
[330725158,1719738646522,-555.57,0.00013999,3]
[330725160,1719738646532,-500.0,0.00013999,3]
[330725162,1719738646542,-500.0,0.00013999,3]
[330725164,1719738646551,-500.0,0.00013999,3]
[330725166,1719738646560,-500.0,0.00013999,3]
[330725168,1719738646569,-633.48,0.00013999,3]
[330725170,1719738646579,-500.0,0.00013999,3]
[330725172,1719738646588,-507.29,0.00013999,2]
[330725174,1719738646597,-507.29,0.00013999,2]
[330725176,1719738646607,-507.29,0.00013999,2]
[330725178,1719738646617,-507.29,0.00013999,2]
[330725180,1719738646627,-507.29,0.00013999,2]
[330725182,1719738646636,-507.29,0.00013999,2]
[330725184,1719738646645,-507.29,0.00013999,2]
[330725186,1719738646655,-507.29,0.00013999,2]
[330725187,1719738646664,-500.0,0.00013999,3]
[330725190,1719738646673,-507.29,0.00013999,2]
[330725192,1719738646682,-507.29,0.00013999,2]
[330725194,1719738646691,-507.29,0.00013999,2]
[330725196,1719738646701,-507.29,0.00013999,2]
[330725197,1719738646709,-507.29,0.00013999,2]
[330725198,1719738646718,-500.0,0.00013999,3]
[330725199,1719738646728,-500.0,0.00013999,3]
[330725200,1719738646737,-860.89,0.00013999,3]
[330725202,1719738646746,-504.33011246,0.00013999,3]
[330725204,1719738646755,-500.0,0.00013999,3]
[330725206,1719738646765,-500.0,0.00013999,2]
[330725208,1719738646774,-500.0,0.00013999,2]
[330725210,1719738646784,-500.0,0.00013999,2]
[330725212,1719738646793,-500.0,0.00013999,2]
[330725214,1719738646802,-500.0,0.00013999,3]
[330725216,1719738646811,-500.0,0.00013999,2]
[330725218,1719738646820,-364.46076887,0.00013999,2]
[330725220,1719738646830,-500.0,0.00013999,3]
[330725222,1719738646839,-501.14325415,0.00013999,3]
[330725224,1719738646848,-584.94,0.00013999,3]
[330725226,1719738646857,-500.0,0.00013999,3]
[330725227,1719738646867,-250.0,0.00013999,3]
[330725228,1719738646876,-658.0,0.00013999,3]
[330725229,1719738646885,-500.0,0.00013999,3]
[330725230,1719738646894,-500.0,0.00013999,3]
[330725231,1719738646904,-500.0,0.00013999,3]
[330725232,1719738646914,-500.0,0.00013999,3]
[330725233,1719738646923,-500.0,0.00013999,3]
[330725234,1719738646932,-500.0,0.00013999,3]
[330725235,1719738646941,-500.0,0.00013999,3]
[330725236,1719738646950,-500.0,0.00013999,3]
[330725237,1719738646959,-500.0,0.00013999,3]
[330725238,1719738646968,-501.41374123,0.00013999,2]
[330725239,1719738646978,-500.0,0.00013999,3]
[330725240,1719738646987,-500.0,0.00013999,3]
[330725241,1719738646996,-872.45,0.00013999,3]
[330725242,1719738647006,-500.0,0.00013999,3]
[330725243,1719738647015,-500.0,0.00013999,3]
[330725244,1719738647024,-500.0,0.00013999,3]
[330725245,1719738647034,-500.0,0.00013999,3]
[330725246,1719738647044,-500.0,0.00013999,3]
[330725247,1719738647053,-500.0,0.00013999,3]
[330725248,1719738647063,-500.0,0.00013999,3]
[330725249,1719738647072,-500.0,0.00013999,3]
[330725250,1719738647082,-500.0,0.00013999,3]
[330725251,1719738647092,-546.96,0.00013999,3]
[330725252,1719738647101,-500.0,0.00013999,3]
[330725253,1719738647110,-500.0,0.00013999,3]
[330725254,1719738647119,-500.0,0.00013999,3]
[330725255,1719738647129,-799.31,0.00013999,3]
[330725256,1719738647138,-500.0,0.00013999,3]
[330725257,1719738647147,-500.0,0.00013999,3]
[330725258,1719738647158,-500.0,0.00013999,3]
[330725259,1719738647173,-500.0,0.00013999,3]
[330725260,1719738647182,-2006.00738704,0.00013999,3]
[330725261,1719738647191,-500.0,0.00013999,3]
[330725262,1719738647200,-500.0,0.00013999,3]
[330725263,1719738647211,-500.0,0.00013999,3]
[330725264,1719738647220,-500.28462535,0.00013999,3]
[330725265,1719738647229,-500.0,0.00013999,3]
[330725266,1719738647239,-500.0,0.00013999,3]
[330725267,1719738647249,-500.0,0.00013999,3]
[330725268,1719738647258,-1147.94,0.00013999,3]
[330725269,1719738647268,-760.72,0.00013999,3]
[330725270,1719738647277,-500.0,0.00013999,3]
[330725271,1719738647289,-500.0,0.00013999,3]
[330725272,1719738647298,-500.0,0.00013999,3]
[330725273,1719738647307,-500.0,0.00013999,3]
[330725274,1719738647319,-500.0,0.00013999,3]
[330725275,1719738647331,-856.13,0.00013999,3]
[330725276,1719738647340,-500.0,0.00013999,3]
[330725277,1719738647350,-642.05,0.00013999,3]
[330725278,1719738647360,-500.0,0.00013999,3]
[330725279,1719738647369,-500.0,0.00013999,3]
[330725280,1719738647379,-500.0,0.00013999,3]
[330725281,1719738647388,-500.23324623,0.00013999,3]
[330725282,1719738647398,-500.72855437,0.00013999,3]
[330725283,1719738647407,-169.47750512,0.00013999,3]
[330725284,1719738647416,-1070.01,0.00013999,3]
[330725285,1719738647426,-871.11,0.00013999,3]
[330725286,1719738647436,-500.0,0.00013999,3]
[330725287,1719738647445,-500.0,0.00013999,3]
[330725288,1719738647455,-500.0,0.00013999,3]
[330725289,1719738647465,-500.19388768,0.00013999,3]
[330725290,1719738647474,-500.0,0.00013999,3]
[330725291,1719738647484,-500.0,0.00013999,3]
[330725292,1719738647494,-591.19,0.00013999,3]
[330725293,1719738647503,-878.45,0.00013999,3]
[330725294,1719738647513,-500.0,0.00013999,3]
[330725295,1719738647524,-500.0,0.00013999,3]
[330725296,1719738647533,-500.0,0.00013999,3]
[330725297,1719738647543,-500.0,0.00013999,3]
[330725298,1719738647553,-500.49963746,0.00013999,3]
[330725299,1719738647564,-500.0,0.00013999,3]
[330725300,1719738647574,-500.0,0.00013999,3]
[330725301,1719738647583,-500.0,0.00013999,3]
[330725302,1719738647594,-738.95,0.00013999,3]
[330725303,1719738647606,-500.0,0.00013999,3]
[330725304,1719738647615,-500.0,0.00013999,3]
[330725305,1719738647625,-500.0,0.00013999,3]
[330725306,1719738647634,-500.0,0.00013999,3]
[330725307,1719738647643,-1091.92,0.00013999,3]
[330725308,1719738647653,-500.0,0.00013999,3]
[330725309,1719738647662,-500.0,0.00013999,3]
[330725310,1719738647671,-500.0,0.00013999,3]
[330725311,1719738647681,-500.0,0.00013999,3]
[330725312,1719738647691,-509.34,0.00013999,3]
[330725313,1719738647701,-537.41,0.00013999,3]
[330725314,1719738647711,-500.0,0.00013999,3]
[330725315,1719738647721,-500.0,0.00013999,3]
[330725316,1719738647732,-500.0,0.00013999,3]
[330725317,1719738647741,-500.0,0.00013999,3]
[330725318,1719738647750,-500.0,0.00013999,3]
[330725319,1719738647759,-500.0,0.00013999,3]
[330725320,1719738647769,-500.0,0.00013999,3]
[330725321,1719738647779,-500.0,0.00013999,3]
[330725322,1719738647790,-500.0,0.00013999,3]
[330725323,1719738647799,-500.0,0.00013999,3]
[330725324,1719738647808,-500.0,0.00013999,3]
[330725325,1719738647821,-500.0,0.00013999,3]
[330725326,1719738647831,-500.0,0.00013999,3]
[330725327,1719738647840,-500.0,0.00013999,3]
[330725328,1719738647849,-500.0,0.00013999,3]
[330725329,1719738647859,-500.0,0.00013999,3]
[330725330,1719738647868,-500.0,0.00013999,3]
[330725331,1719738647877,-500.0,0.00013999,3]
[330725332,1719738647886,-500.4202905,0.00013999,3]
[330725333,1719738647896,-1141.34,0.00013999,3]
[330725334,1719738647905,-500.0,0.00013999,3]
[330725335,1719738647916,-500.0,0.00013999,3]
[330725336,1719738647926,-681.91,0.00013999,3]
[330725337,1719738647935,-500.0,0.00013999,3]
[330725338,1719738647944,-500.0,0.00013999,3]
[330725339,1719738647953,-1123.51,0.00013999,3]
[330725340,1719738647963,-1049.3,0.00013999,3]
[330725341,1719738647972,-613.92,0.00013999,3]
[330725342,1719738647982,-820.59,0.00013999,3]
[330725343,1719738647991,-545.13,0.00013999,3]
[330725344,1719738648000,-807.61,0.00013999,3]
[330725345,1719738648010,-904.47,0.00013999,3]
[330725346,1719738648019,-500.0,0.00013999,3]
[330725347,1719738648028,-764.44,0.00013999,3]